[Event "Titled Tuesday Blitz February 07 Late 2023"]
[White "Zhang, Derek"]
[Black "Bluebaum, Matthias"]
[WhiteFideId "2087871"]
[BlackFideId "24651516"]
[WhiteElo "2186"]
[BlackElo "2669"]
[Result "0-1"]
[Round "01"]
[TimeControl "180+2"]
[Date "2023.02.07"]
[WhiteClock "0:00:12"]
[BlackClock "0:01:47"]

1. Nf3 {[%clk 0:03:00]}  d5 {[%clk 0:02:59]} 2. c4 {[%clk 0:03:00]}  e6 {[%clk 0:02:57]} 3. e3 {[%clk 0:03:00]}  Nf6 {[%clk 0:02:57]} 4. Nc3 {[%clk 0:03:00]}  Bd6 {[%clk 0:02:58]} 5. b3 {[%clk 0:02:58]}  O-O {[%clk 0:02:58]} 6. Bb2 {[%clk 0:02:57]}  c5 {[%clk 0:02:58]} 7. cxd5 {[%clk 0:02:56]}  exd5 {[%clk 0:02:59]} 8. d4 {[%clk 0:02:55]}  Nc6 {[%clk 0:03:00]} 9. Be2 {[%clk 0:02:52]}  cxd4 {[%clk 0:02:59]} 10. Nxd4 {[%clk 0:02:52]}  Nxd4 {[%clk 0:02:59]} 11. Qxd4 {[%clk 0:02:52]}  Re8 {[%clk 0:03:00]} 12. O-O {[%clk 0:02:50]}  Be5 {[%clk 0:03:00]} 13. Qd2 {[%clk 0:02:50]}  d4 {[%clk 0:03:00]} 14. exd4 {[%clk 0:02:48]}  Qxd4 {[%clk 0:03:01]} 15. Qxd4 {[%clk 0:02:38]}  Bxd4 {[%clk 0:03:02]} 16. Bf3 {[%clk 0:02:39]}  Rd8 {[%clk 0:02:58]} 17. Rfd1 {[%clk 0:02:34]}  Bg4 {[%clk 0:02:58]} 18. Bxb7 {[%clk 0:01:47]}  Bxd1 {[%clk 0:02:56]} 19. Bxa8 {[%clk 0:01:47]}  Bxb3 {[%clk 0:02:56]} 20. axb3 {[%clk 0:01:39]}  Rxa8 {[%clk 0:02:56]} 21. Na4 {[%clk 0:01:37]}  Rd8 {[%clk 0:02:49]} 22. Kf1 {[%clk 0:01:26]}  Bxb2 {[%clk 0:02:46]} 23. Nxb2 {[%clk 0:01:27]}  Rd7 {[%clk 0:02:47]} 24. Nc4 {[%clk 0:01:26]}  g6 {[%clk 0:02:47]} 25. Ke2 {[%clk 0:01:19]}  Rb7 {[%clk 0:02:46]} 26. f3 {[%clk 0:01:11]}  Nd5 {[%clk 0:02:42]} 27. Na5 {[%clk 0:00:52]}  Rc7 {[%clk 0:02:39]} 28. Nc4 {[%clk 0:00:39]}  Nf4+ {[%clk 0:02:37]} 29. Kf2 {[%clk 0:00:39]}  Nd3+ {[%clk 0:02:38]} 30. Ke3 {[%clk 0:00:39]}  Nc5 {[%clk 0:02:36]} 31. Na5 {[%clk 0:00:37]}  Re7+ {[%clk 0:02:35]} 32. Kd4 {[%clk 0:00:35]}  Ne6+ {[%clk 0:02:35]} 33. Ke5 {[%clk 0:00:32]}  Kg7 {[%clk 0:02:29]} 34. Kd6 {[%clk 0:00:30]}  Re8 {[%clk 0:02:27]} 35. Nc6 {[%clk 0:00:30]}  Nf4 {[%clk 0:02:24]} 36. g3 {[%clk 0:00:29]}  Re6+ {[%clk 0:02:24]} 37. Kd7 {[%clk 0:00:27]}  Nd3 {[%clk 0:02:22]} 38. b4 {[%clk 0:00:23]}  Re2 {[%clk 0:02:15]} 39. Rxa7 {[%clk 0:00:20]}  Rxh2 {[%clk 0:02:15]} 40. b5 {[%clk 0:00:20]}  Rb2 {[%clk 0:02:14]} 41. Ke8 {[%clk 0:00:15]}  Rxb5 {[%clk 0:02:11]} 42. Rxf7+ {[%clk 0:00:15]}  Kh6 {[%clk 0:02:12]} 43. f4 {[%clk 0:00:14]}  Rb6 {[%clk 0:02:07]} 44. Ne7 {[%clk 0:00:14]}  Nc5 {[%clk 0:02:01]} 45. Ng8+ {[%clk 0:00:14]}  Kh5 {[%clk 0:02:01]} 46. Rxh7+ {[%clk 0:00:14]}  Kg4 {[%clk 0:02:02]} 47. Nh6+ {[%clk 0:00:12]}  Kxg3 {[%clk 0:02:01]} 48. f5 {[%clk 0:00:13]}  g5 {[%clk 0:01:51]} 49. Ke7 {[%clk 0:00:11]}  Rb7+ {[%clk 0:01:51]} 50. Kf6 {[%clk 0:00:11]}  Rxh7 {[%clk 0:01:52]} 51. Kg6 {[%clk 0:00:11]}  Rxh6+ {[%clk 0:01:46]} 52. Kxh6 {[%clk 0:00:12]}  Kf4 {[%clk 0:01:47]} 53. Kg6 {[%clk 0:00:12]}  Nd7 {[%clk 0:01:47]} 0-1


[Site "https://www.chess.com"]

[Event "Titled Tuesday Blitz February 07 Late 2023"]
[White "Sivakumar, Shaaketh"]
[Black "Hakobyan, Aram"]
[WhiteFideId "30940176"]
[BlackFideId "13306677"]
[WhiteElo "2337"]
[BlackElo "2608"]
[Result "0-1"]
[Round "01"]
[TimeControl "180+2"]
[Date "2023.02.07"]
[WhiteClock "0:02:05"]
[BlackClock "0:02:25"]

1. e4 {[%clk 0:03:00]}  c5 {[%clk 0:02:56]} 2. Nf3 {[%clk 0:03:00]}  d6 {[%clk 0:02:56]} 3. d4 {[%clk 0:02:59]}  cxd4 {[%clk 0:02:57]} 4. Qxd4 {[%clk 0:02:59]}  a6 {[%clk 0:02:56]} 5. c4 {[%clk 0:02:57]}  Nc6 {[%clk 0:02:57]} 6. Qe3 {[%clk 0:02:57]}  g6 {[%clk 0:02:58]} 7. Nc3 {[%clk 0:02:54]}  Bh6 {[%clk 0:02:54]} 8. Qd3 {[%clk 0:02:52]}  Bg7 {[%clk 0:02:54]} 9. Be3 {[%clk 0:02:50]}  Bg4 {[%clk 0:02:54]} 10. Be2 {[%clk 0:02:50]}  Nf6 {[%clk 0:02:54]} 11. O-O {[%clk 0:02:49]}  Nd7 {[%clk 0:02:54]} 12. Nd4 {[%clk 0:02:45]}  Bxe2 {[%clk 0:02:47]} 13. Ncxe2 {[%clk 0:02:44]}  Nde5 {[%clk 0:02:46]} 14. Qb3 {[%clk 0:02:45]}  O-O {[%clk 0:02:43]} 15. Rac1 {[%clk 0:02:43]}  Na5 {[%clk 0:02:40]} 16. Qa4 {[%clk 0:02:41]}  Naxc4 {[%clk 0:02:39]} 17. Rxc4 {[%clk 0:02:07]}  b5 {[%clk 0:02:38]} 18. Nxb5 {[%clk 0:02:08]}  axb5 {[%clk 0:02:39]} 19. Qxb5 {[%clk 0:02:08]}  Rb8 {[%clk 0:02:36]} 20. Qd5 {[%clk 0:02:05]}  e6 {[%clk 0:02:25]} 0-1


[Site "https://www.chess.com"]

[Event "Titled Tuesday Blitz February 07 Late 2023"]
[White "Babazada, Khazar"]
[Black "Kokoszczynski, Jan"]
[WhiteFideId "13413554"]
[BlackFideId "1174460"]
[WhiteElo "2474"]
[BlackElo "2247"]
[Result "1-0"]
[Round "01"]
[TimeControl "180+2"]
[Date "2023.02.07"]
[WhiteClock "0:01:58"]
[BlackClock "0:00:34"]

1. e4 {[%clk 0:03:00]}  e5 {[%clk 0:02:57]} 2. Nc3 {[%clk 0:03:00]}  Nf6 {[%clk 0:02:53]} 3. f4 {[%clk 0:03:00]}  d5 {[%clk 0:02:53]} 4. fxe5 {[%clk 0:03:01]}  Nxe4 {[%clk 0:02:53]} 5. Nf3 {[%clk 0:03:00]}  Bg4 {[%clk 0:02:34]} 6. d3 {[%clk 0:02:58]}  Nxc3 {[%clk 0:02:34]} 7. bxc3 {[%clk 0:02:59]}  Nc6 {[%clk 0:02:32]} 8. d4 {[%clk 0:02:59]}  Be7 {[%clk 0:02:28]} 9. Bd3 {[%clk 0:02:59]}  Qd7 {[%clk 0:02:28]} 10. O-O {[%clk 0:02:56]}  h6 {[%clk 0:02:27]} 11. Rb1 {[%clk 0:02:55]}  b6 {[%clk 0:02:25]} 12. Qe1 {[%clk 0:02:55]}  Be6 {[%clk 0:02:18]} 13. Nh4 {[%clk 0:02:54]}  Na5 {[%clk 0:02:03]} 14. Nf5 {[%clk 0:02:53]}  Bf8 {[%clk 0:02:00]} 15. Qg3 {[%clk 0:02:51]}  g6 {[%clk 0:01:59]} 16. Ne3 {[%clk 0:02:49]}  O-O-O {[%clk 0:01:58]} 17. Bd2 {[%clk 0:02:46]}  h5 {[%clk 0:01:51]} 18. Qf2 {[%clk 0:02:43]}  Bh6 {[%clk 0:01:50]} 19. Rb5 {[%clk 0:02:34]}  Nc4 {[%clk 0:01:34]} 20. Bxc4 {[%clk 0:02:28]}  dxc4 {[%clk 0:01:33]} 21. a4 {[%clk 0:02:29]}  Bxe3 {[%clk 0:01:33]} 22. Bxe3 {[%clk 0:02:29]}  Bd5 {[%clk 0:01:30]} 23. Rfb1 {[%clk 0:02:29]}  a6 {[%clk 0:01:23]} 24. R5b4 {[%clk 0:02:29]}  Kb7 {[%clk 0:01:18]} 25. a5 {[%clk 0:02:28]}  b5 {[%clk 0:01:18]} 26. Bg5 {[%clk 0:02:27]}  Rde8 {[%clk 0:01:17]} 27. Bf6 {[%clk 0:02:26]}  Rhg8 {[%clk 0:01:18]} 28. h4 {[%clk 0:02:24]}  Qc6 {[%clk 0:01:17]} 29. Kh2 {[%clk 0:02:20]}  Re6 {[%clk 0:01:17]} 30. Bg5 {[%clk 0:02:13]}  Ree8 {[%clk 0:01:15]} 31. Rf1 {[%clk 0:02:12]}  Re6 {[%clk 0:01:05]} 32. Qd2 {[%clk 0:02:08]}  Ree8 {[%clk 0:00:56]} 33. Rbb1 {[%clk 0:02:06]}  Rh8 {[%clk 0:00:43]} 34. Rf6 {[%clk 0:02:06]}  Qd7 {[%clk 0:00:42]} 35. Qf4 {[%clk 0:02:03]}  Rh7 {[%clk 0:00:42]} 36. Rf1 {[%clk 0:02:00]}  Bc6 {[%clk 0:00:36]} 37. Rxf7 {[%clk 0:01:59]}  Rxf7 {[%clk 0:00:36]} 38. Qxf7 {[%clk 0:02:00]}  Qg4 {[%clk 0:00:34]} 39. d5 {[%clk 0:01:58]} 1-0


[Site "https://www.chess.com"]

[Event "Titled Tuesday Blitz February 07 Late 2023"]
[White "Kochetov, Andrey"]
[Black "Zierk, Steven"]
[WhiteFideId "24130532"]
[BlackFideId "2034255"]
[WhiteElo "2165"]
[BlackElo "2488"]
[Result "1/2-1/2"]
[Round "01"]
[TimeControl "180+2"]
[Date "2023.02.07"]
[WhiteClock "0:00:04"]
[BlackClock "0:00:40"]

1. e4 {[%clk 0:03:00]}  e6 {[%clk 0:02:59]} 2. d4 {[%clk 0:03:00]}  d5 {[%clk 0:02:59]} 3. Nd2 {[%clk 0:03:01]}  c5 {[%clk 0:02:59]} 4. Ngf3 {[%clk 0:03:00]}  cxd4 {[%clk 0:02:59]} 5. Nxd4 {[%clk 0:03:00]}  Nc6 {[%clk 0:02:59]} 6. Bb5 {[%clk 0:02:59]}  Bd7 {[%clk 0:03:00]} 7. Nxc6 {[%clk 0:02:53]}  bxc6 {[%clk 0:03:01]} 8. Bd3 {[%clk 0:02:53]}  Qc7 {[%clk 0:02:58]} 9. O-O {[%clk 0:02:53]}  Ne7 {[%clk 0:02:58]} 10. Qe2 {[%clk 0:02:49]}  Ng6 {[%clk 0:02:58]} 11. g3 {[%clk 0:02:44]}  Be7 {[%clk 0:02:35]} 12. c4 {[%clk 0:02:29]}  dxe4 {[%clk 0:02:31]} 13. Bxe4 {[%clk 0:02:19]}  f5 {[%clk 0:02:31]} 14. Bg2 {[%clk 0:02:16]}  O-O {[%clk 0:02:29]} 15. Nf3 {[%clk 0:02:13]}  e5 {[%clk 0:02:28]} 16. h4 {[%clk 0:02:03]}  e4 {[%clk 0:02:22]} 17. Ng5 {[%clk 0:02:03]}  h6 {[%clk 0:02:16]} 18. h5 {[%clk 0:01:59]}  Ne5 {[%clk 0:02:09]} 19. Nh3 {[%clk 0:01:57]}  Nd3 {[%clk 0:02:06]} 20. Nf4 {[%clk 0:01:57]}  Nxc1 {[%clk 0:02:04]} 21. Raxc1 {[%clk 0:01:56]}  Bf6 {[%clk 0:02:04]} 22. Rcd1 {[%clk 0:01:53]}  Rad8 {[%clk 0:02:01]} 23. Rd2 {[%clk 0:01:24]}  Bg5 {[%clk 0:01:48]} 24. Rfd1 {[%clk 0:01:24]}  Bc8 {[%clk 0:01:46]} 25. Rxd8 {[%clk 0:01:20]}  Rxd8 {[%clk 0:01:47]} 26. Ng6 {[%clk 0:01:19]}  c5 {[%clk 0:01:38]} 27. Rd5 {[%clk 0:01:03]}  Rxd5 {[%clk 0:01:36]} 28. cxd5 {[%clk 0:01:04]}  Bf6 {[%clk 0:01:35]} 29. Qb5 {[%clk 0:00:54]}  Bd7 {[%clk 0:01:31]} 30. Qc4 {[%clk 0:00:52]}  Qd6 {[%clk 0:01:31]} 31. b3 {[%clk 0:00:45]}  Be8 {[%clk 0:01:23]} 32. Bh3 {[%clk 0:00:42]}  Bd4 {[%clk 0:01:13]} 33. Nf4 {[%clk 0:00:34]}  Bd7 {[%clk 0:01:09]} 34. Kg2 {[%clk 0:00:33]}  Kh7 {[%clk 0:01:07]} 35. Ne6 {[%clk 0:00:31]}  Bxe6 {[%clk 0:01:01]} 36. dxe6 {[%clk 0:00:31]}  Qe5 {[%clk 0:01:01]} 37. e7 {[%clk 0:00:21]}  e3 {[%clk 0:00:58]} 38. Bxf5+ {[%clk 0:00:19]}  Qxf5 {[%clk 0:00:47]} 39. e8=Q {[%clk 0:00:18]}  Qxf2+ {[%clk 0:00:46]} 40. Kh3 {[%clk 0:00:19]}  Qf5+ {[%clk 0:00:46]} 41. Kh2 {[%clk 0:00:07]}  Qf2+ {[%clk 0:00:45]} 42. Kh1 {[%clk 0:00:07]}  Qf3+ {[%clk 0:00:44]} 43. Kh2 {[%clk 0:00:04]}  Qf2+ {[%clk 0:00:43]} 44. Kh3 {[%clk 0:00:04]}  Qf5+ {[%clk 0:00:42]} 45. Kh2 {[%clk 0:00:04]}  Qf2+ {[%clk 0:00:40]} 1/2-1/2


[Site "https://www.chess.com"]

[Event "Titled Tuesday Blitz February 07 Late 2023"]
[White "Svane, Rasmus"]
[Black "Schekachikhin, Maksim"]
[WhiteFideId "4657101"]
[BlackFideId "24177830"]
[WhiteElo "2623"]
[BlackElo "2371"]
[Result "1-0"]
[Round "01"]
[TimeControl "180+2"]
[Date "2023.02.07"]
[WhiteClock "0:01:29"]
[BlackClock "0:00:20"]

1. Nf3 {[%clk 0:03:00]}  c5 {[%clk 0:02:59]} 2. c4 {[%clk 0:03:00]}  Nf6 {[%clk 0:02:57]} 3. Nc3 {[%clk 0:03:00]}  e6 {[%clk 0:02:58]} 4. e3 {[%clk 0:03:00]}  Nc6 {[%clk 0:02:56]} 5. d4 {[%clk 0:03:00]}  d5 {[%clk 0:02:57]} 6. a3 {[%clk 0:03:01]}  dxc4 {[%clk 0:02:54]} 7. Bxc4 {[%clk 0:03:01]}  a6 {[%clk 0:02:54]} 8. O-O {[%clk 0:03:01]}  b5 {[%clk 0:02:54]} 9. Ba2 {[%clk 0:03:01]}  Bb7 {[%clk 0:02:54]} 10. Qe2 {[%clk 0:02:58]}  cxd4 {[%clk 0:02:52]} 11. Rd1 {[%clk 0:02:58]}  Be7 {[%clk 0:02:49]} 12. exd4 {[%clk 0:02:57]}  O-O {[%clk 0:02:32]} 13. Bg5 {[%clk 0:02:54]}  Nd5 {[%clk 0:02:23]} 14. Bxd5 {[%clk 0:02:22]}  Bxg5 {[%clk 0:02:22]} 15. Be4 {[%clk 0:02:23]}  Na5 {[%clk 0:01:29]} 16. Bxb7 {[%clk 0:02:20]}  Nxb7 {[%clk 0:01:30]} 17. d5 {[%clk 0:02:21]}  e5 {[%clk 0:01:11]} 18. Ne4 {[%clk 0:02:05]}  Bf6 {[%clk 0:01:05]} 19. Nxf6+ {[%clk 0:02:05]}  Qxf6 {[%clk 0:01:04]} 20. Qxe5 {[%clk 0:02:05]}  Qxe5 {[%clk 0:01:03]} 21. Nxe5 {[%clk 0:02:06]}  Nd6 {[%clk 0:01:02]} 22. Rac1 {[%clk 0:02:05]}  Rfe8 {[%clk 0:01:02]} 23. Nd3 {[%clk 0:01:53]}  Nc4 {[%clk 0:00:55]} 24. a4 {[%clk 0:01:52]}  Rad8 {[%clk 0:00:50]} 25. axb5 {[%clk 0:01:49]}  axb5 {[%clk 0:00:51]} 26. b3 {[%clk 0:01:48]}  Na5 {[%clk 0:00:42]} 27. Nc5 {[%clk 0:01:46]}  Rb8 {[%clk 0:00:24]} 28. Kf1 {[%clk 0:01:31]}  Nb7 {[%clk 0:00:24]} 29. Na6 {[%clk 0:01:30]}  Rbd8 {[%clk 0:00:23]} 30. Nc7 {[%clk 0:01:30]}  Re5 {[%clk 0:00:20]} 31. Nxb5 {[%clk 0:01:30]}  Rexd5 {[%clk 0:00:20]} 32. Rxd5 {[%clk 0:01:31]}  Rxd5 {[%clk 0:00:20]} 33. Rc8+ {[%clk 0:01:31]}  Nd8 {[%clk 0:00:21]} 34. Na7 {[%clk 0:01:29]}  Kf8 {[%clk 0:00:20]} 35. Nc6 {[%clk 0:01:29]}  Ke8 {[%clk 0:00:20]} 1-0


[Site "https://www.chess.com"]

[Event "Titled Tuesday Blitz February 07 Late 2023"]
[White "Girsh, Daniel"]
[Black "Kamsky, Gata"]
[WhiteFideId "30949190"]
[BlackFideId "2000024"]
[WhiteElo "2123"]
[BlackElo "2665"]
[Result "0-1"]
[Round "01"]
[TimeControl "180+2"]
[Date "2023.02.07"]
[WhiteClock "0:00:20"]
[BlackClock "0:00:27"]

1. e4 {[%clk 0:03:00]}  g6 {[%clk 0:02:54]} 2. d4 {[%clk 0:03:00]}  d6 {[%clk 0:02:53]} 3. Nc3 {[%clk 0:03:00]}  Bg7 {[%clk 0:02:53]} 4. Nf3 {[%clk 0:02:59]}  a6 {[%clk 0:02:52]} 5. Bd3 {[%clk 0:02:54]}  e6 {[%clk 0:02:51]} 6. O-O {[%clk 0:02:55]}  b5 {[%clk 0:02:50]} 7. Re1 {[%clk 0:02:54]}  Bb7 {[%clk 0:02:43]} 8. Ne2 {[%clk 0:02:51]}  Nd7 {[%clk 0:02:38]} 9. Ng3 {[%clk 0:02:50]}  Ngf6 {[%clk 0:02:34]} 10. a4 {[%clk 0:02:47]}  b4 {[%clk 0:02:21]} 11. e5 {[%clk 0:02:47]}  dxe5 {[%clk 0:02:14]} 12. Nxe5 {[%clk 0:02:41]}  Nxe5 {[%clk 0:01:56]} 13. dxe5 {[%clk 0:02:41]}  Qd5 {[%clk 0:01:56]} 14. f3 {[%clk 0:02:28]}  Ng4 {[%clk 0:01:45]} 15. Qe2 {[%clk 0:02:09]}  Qd4+ {[%clk 0:01:43]} 16. Be3 {[%clk 0:01:58]}  Nxe3 {[%clk 0:01:42]} 17. Qxe3 {[%clk 0:01:55]}  Bxe5 {[%clk 0:01:42]} 18. c3 {[%clk 0:01:25]}  bxc3 {[%clk 0:01:38]} 19. bxc3 {[%clk 0:01:26]}  Qxe3+ {[%clk 0:01:36]} 20. Rxe3 {[%clk 0:01:26]}  Bf4 {[%clk 0:00:58]} 21. Re2 {[%clk 0:01:23]}  Ke7 {[%clk 0:00:57]} 22. Ne4 {[%clk 0:01:21]}  a5 {[%clk 0:00:53]} 23. Rb1 {[%clk 0:01:16]}  Bd5 {[%clk 0:00:53]} 24. c4 {[%clk 0:01:15]}  Bc6 {[%clk 0:00:52]} 25. Nc3 {[%clk 0:01:07]}  Rab8 {[%clk 0:00:51]} 26. Nb5 {[%clk 0:01:07]}  Rhd8 {[%clk 0:00:47]} 27. Bc2 {[%clk 0:01:02]}  h5 {[%clk 0:00:37]} 28. Kf2 {[%clk 0:00:58]}  h4 {[%clk 0:00:37]} 29. g3 {[%clk 0:00:54]}  Bd6 {[%clk 0:00:37]} 30. Kg2 {[%clk 0:00:43]}  hxg3 {[%clk 0:00:36]} 31. hxg3 {[%clk 0:00:43]}  Be8 {[%clk 0:00:35]} 32. Rd1 {[%clk 0:00:35]}  c6 {[%clk 0:00:32]} 33. Nd4 {[%clk 0:00:27]}  Bc5 {[%clk 0:00:30]} 34. Red2 {[%clk 0:00:26]}  Bxd4 {[%clk 0:00:29]} 35. Rxd4 {[%clk 0:00:26]}  Rxd4 {[%clk 0:00:29]} 36. Rxd4 {[%clk 0:00:26]}  c5 {[%clk 0:00:29]} 37. Rd2 {[%clk 0:00:25]}  Rb2 {[%clk 0:00:29]} 38. Kf1 {[%clk 0:00:22]}  Bxa4 {[%clk 0:00:27]} 39. Ke1 {[%clk 0:00:21]}  Bxc2 {[%clk 0:00:27]} 40. Ke2 {[%clk 0:00:20]}  a4 {[%clk 0:00:27]} 41. Ke3 {[%clk 0:00:20]}  a3 {[%clk 0:00:27]} 0-1


[Site "https://www.chess.com"]

[Event "Titled Tuesday Blitz February 07 Late 2023"]
[White "Urazayev, Arystanbek"]
[Black "Seletsky, Grigory"]
[WhiteFideId "13709810"]
[BlackFideId "14112191"]
[WhiteElo "2460"]
[BlackElo "2259"]
[Result "1-0"]
[Round "01"]
[TimeControl "180+2"]
[Date "2023.02.07"]
[WhiteClock "0:01:37"]
[BlackClock "0:00:02"]

1. d4 {[%clk 0:03:00]}  c5 {[%clk 0:02:59]} 2. d5 {[%clk 0:03:00]}  e5 {[%clk 0:02:58]} 3. e4 {[%clk 0:02:58]}  d6 {[%clk 0:02:58]} 4. Nc3 {[%clk 0:02:57]}  Nf6 {[%clk 0:02:59]} 5. Bd3 {[%clk 0:02:51]}  Be7 {[%clk 0:02:58]} 6. Nge2 {[%clk 0:02:51]}  O-O {[%clk 0:02:57]} 7. O-O {[%clk 0:02:51]}  Nbd7 {[%clk 0:02:58]} 8. a4 {[%clk 0:02:47]}  a6 {[%clk 0:02:57]} 9. Ng3 {[%clk 0:02:47]}  g6 {[%clk 0:02:55]} 10. Bh6 {[%clk 0:02:46]}  Re8 {[%clk 0:02:55]} 11. h3 {[%clk 0:02:43]}  Kh8 {[%clk 0:02:46]} 12. Qd2 {[%clk 0:02:43]}  Ng8 {[%clk 0:02:46]} 13. Be3 {[%clk 0:02:42]}  Bf6 {[%clk 0:02:42]} 14. Rae1 {[%clk 0:02:42]}  Bg7 {[%clk 0:02:42]} 15. f4 {[%clk 0:02:41]}  exf4 {[%clk 0:02:40]} 16. Bxf4 {[%clk 0:02:41]}  Qe7 {[%clk 0:02:41]} 17. Nd1 {[%clk 0:02:35]}  Ne5 {[%clk 0:02:39]} 18. Be2 {[%clk 0:02:35]}  Bd7 {[%clk 0:02:36]} 19. b3 {[%clk 0:02:35]}  b5 {[%clk 0:02:35]} 20. axb5 {[%clk 0:02:33]}  axb5 {[%clk 0:02:35]} 21. Ne3 {[%clk 0:02:33]}  Ra2 {[%clk 0:02:21]} 22. Bd1 {[%clk 0:02:33]}  b4 {[%clk 0:02:17]} 23. Be2 {[%clk 0:02:32]}  Rea8 {[%clk 0:02:15]} 24. Nc4 {[%clk 0:02:32]}  Nxc4 {[%clk 0:02:09]} 25. Bxc4 {[%clk 0:02:33]}  Bd4+ {[%clk 0:02:08]} 26. Kh1 {[%clk 0:02:32]}  Rb2 {[%clk 0:01:59]} 27. e5 {[%clk 0:02:21]}  dxe5 {[%clk 0:01:46]} 28. d6 {[%clk 0:02:17]}  Qxd6 {[%clk 0:01:46]} 29. Rxe5 {[%clk 0:02:08]}  Bxe5 {[%clk 0:01:25]} 30. Qxd6 {[%clk 0:02:07]}  Bxd6 {[%clk 0:01:25]} 31. Bxd6 {[%clk 0:02:08]}  Rxc2 {[%clk 0:01:16]} 32. Rxf7 {[%clk 0:02:02]}  Rxc4 {[%clk 0:00:28]} 33. bxc4 {[%clk 0:01:56]}  Nh6 {[%clk 0:00:23]} 34. Rxd7 {[%clk 0:01:53]}  Kg8 {[%clk 0:00:14]} 35. Ne4 {[%clk 0:01:53]}  Nf7 {[%clk 0:00:15]} 36. Bxc5 {[%clk 0:01:52]}  b3 {[%clk 0:00:13]} 37. Nf6+ {[%clk 0:01:51]}  Kg7 {[%clk 0:00:12]} 38. Bd4 {[%clk 0:01:52]}  Ra2 {[%clk 0:00:10]} 39. Nd5+ {[%clk 0:01:48]}  Kf8 {[%clk 0:00:05]} 40. Rb7 {[%clk 0:01:48]}  Ke8 {[%clk 0:00:04]} 41. Rxb3 {[%clk 0:01:47]}  Rd2 {[%clk 0:00:04]} 42. Rb8+ {[%clk 0:01:47]}  Kd7 {[%clk 0:00:04]} 43. Rb7+ {[%clk 0:01:48]}  Ke8 {[%clk 0:00:04]} 44. Bc5 {[%clk 0:01:41]}  Rd1+ {[%clk 0:00:01]} 45. Kh2 {[%clk 0:01:41]}  Ng5 {[%clk 0:00:02]} 46. Nf6+ {[%clk 0:01:41]}  Kd8 {[%clk 0:00:01]} 47. Nxh7 {[%clk 0:01:37]}  Nxh7 {[%clk 0:00:02]} 48. Rxh7 {[%clk 0:01:37]}  Rc1 {[%clk 0:00:02]} 49. Be7+ {[%clk 0:01:36]}  Ke8 {[%clk 0:00:02]} 50. c5 {[%clk 0:01:37]} 1-0


[Site "https://www.chess.com"]

[Event "Titled Tuesday Blitz February 07 Late 2023"]
[White "Petrovic, Aleksa"]
[Black "Rasulov, Vugar"]
[WhiteFideId "967629"]
[BlackFideId "13402390"]
[WhiteElo "2332"]
[BlackElo "2523"]
[Result "1/2-1/2"]
[Round "01"]
[TimeControl "180+2"]
[Date "2023.02.07"]
[WhiteClock "0:02:08"]
[BlackClock "0:02:08"]

1. d4 {[%clk 0:03:00]}  d5 {[%clk 0:02:59]} 2. c4 {[%clk 0:02:59]}  dxc4 {[%clk 0:03:00]} 3. Nf3 {[%clk 0:02:58]}  Nf6 {[%clk 0:02:59]} 4. e3 {[%clk 0:02:57]}  e6 {[%clk 0:03:00]} 5. Bxc4 {[%clk 0:02:58]}  c5 {[%clk 0:03:01]} 6. Nc3 {[%clk 0:02:57]}  Nc6 {[%clk 0:03:01]} 7. O-O {[%clk 0:02:57]}  Be7 {[%clk 0:03:01]} 8. Qe2 {[%clk 0:02:56]}  O-O {[%clk 0:02:57]} 9. Rd1 {[%clk 0:02:56]}  Qc7 {[%clk 0:02:58]} 10. a3 {[%clk 0:02:46]}  a6 {[%clk 0:02:52]} 11. dxc5 {[%clk 0:02:45]}  Bxc5 {[%clk 0:02:50]} 12. b4 {[%clk 0:02:45]}  Bd6 {[%clk 0:02:48]} 13. Bb2 {[%clk 0:02:45]}  Ne5 {[%clk 0:02:44]} 14. Nxe5 {[%clk 0:02:41]}  Bxe5 {[%clk 0:02:45]} 15. f4 {[%clk 0:02:23]}  Bxc3 {[%clk 0:02:42]} 16. Bxc3 {[%clk 0:02:22]}  b5 {[%clk 0:02:37]} 17. Bxf6 {[%clk 0:02:20]}  gxf6 {[%clk 0:02:37]} 18. Qg4+ {[%clk 0:02:08]}  Kh8 {[%clk 0:02:37]} 19. Qh4 {[%clk 0:02:08]}  Kg7 {[%clk 0:02:24]} 20. Qg4+ {[%clk 0:02:07]}  Kh8 {[%clk 0:02:24]} 21. Qh4 {[%clk 0:02:08]}  Kg7 {[%clk 0:02:07]} 22. Qg4+ {[%clk 0:02:08]}  Kh8 {[%clk 0:02:08]} 1/2-1/2


[Site "https://www.chess.com"]

[Event "Titled Tuesday Blitz February 07 Late 2023"]
[White "Dardha, Daniel"]
[Black "Bas Mas, Jose Joaquin"]
[WhiteFideId "240990"]
[BlackFideId "22219064"]
[WhiteElo "2631"]
[BlackElo "2197"]
[Result "1-0"]
[Round "01"]
[TimeControl "180+2"]
[Date "2023.02.07"]
[WhiteClock "0:01:48"]
[BlackClock "0:00:20"]

1. Nf3 {[%clk 0:02:59]}  Nf6 {[%clk 0:02:59]} 2. c4 {[%clk 0:02:59]}  e6 {[%clk 0:02:59]} 3. Nc3 {[%clk 0:02:58]}  d5 {[%clk 0:02:59]} 4. d4 {[%clk 0:02:58]}  Nbd7 {[%clk 0:02:58]} 5. g4 {[%clk 0:02:56]}  c6 {[%clk 0:02:32]} 6. g5 {[%clk 0:02:54]}  Ne4 {[%clk 0:02:31]} 7. Qd3 {[%clk 0:02:54]}  Bb4 {[%clk 0:02:15]} 8. h4 {[%clk 0:02:49]}  b6 {[%clk 0:02:09]} 9. Qc2 {[%clk 0:02:46]}  Qe7 {[%clk 0:01:58]} 10. Bf4 {[%clk 0:02:36]}  O-O {[%clk 0:01:44]} 11. e3 {[%clk 0:02:29]}  c5 {[%clk 0:01:39]} 12. cxd5 {[%clk 0:02:22]}  exd5 {[%clk 0:01:38]} 13. a3 {[%clk 0:02:21]}  Bxc3+ {[%clk 0:01:30]} 14. bxc3 {[%clk 0:02:22]}  Bb7 {[%clk 0:01:25]} 15. Bh3 {[%clk 0:02:22]}  Rfe8 {[%clk 0:01:22]} 16. h5 {[%clk 0:02:12]}  Nf8 {[%clk 0:01:20]} 17. h6 {[%clk 0:02:11]}  Ne6 {[%clk 0:01:17]} 18. Be5 {[%clk 0:02:08]}  N6xg5 {[%clk 0:00:51]} 19. Nxg5 {[%clk 0:02:06]}  Qxg5 {[%clk 0:00:50]} 20. O-O-O {[%clk 0:01:56]}  Rxe5 {[%clk 0:00:45]} 21. dxe5 {[%clk 0:01:51]}  Qxe5 {[%clk 0:00:45]} 22. hxg7 {[%clk 0:01:50]}  Ba6 {[%clk 0:00:30]} 23. Rdg1 {[%clk 0:01:48]}  Rd8 {[%clk 0:00:22]} 24. f3 {[%clk 0:01:48]}  Nxc3 {[%clk 0:00:20]} 25. Qxh7+ {[%clk 0:01:48]} 1-0


[Site "https://www.chess.com"]